bitfinex/quotes_BTCUSD_20240605
["timestamp","ask_amount","ask_price","bid_price","bid_amount"]
[1717593690221,0.2517472,71059.0,71058.0,0.81931224]
[1717593691383,0.2517472,71059.0,71058.0,0.75689858]
[1717593692352,0.2517472,71059.0,71058.0,0.7568989]
[1717593694062,0.2517472,71059.0,71058.0,0.84016549]
[1717593694574,0.31366,71059.0,71058.0,0.84016549]
[1717593695021,0.3184472,71059.0,71058.0,0.84016549]
[1717593695224,0.3184472,71059.0,71058.0,0.7568989]
[1717593695613,0.3184472,71059.0,71058.0,0.756899]
[1717593697233,0.2517472,71059.0,71058.0,0.756899]
[1717593697435,0.2546472,71059.0,71058.0,0.756899]
[1717593698465,0.2546472,71059.0,71058.0,0.8610509]
[1717593699602,0.0096472,71059.0,71058.0,0.8610509]
[1717593700011,0.00486,71059.0,71058.0,0.776899]
[1717593700246,0.0096474,71059.0,71058.0,1.875011]
[1717593700449,0.0096474,71059.0,71058.0,1.656265]
[1717593700600,0.00486,71059.0,71058.0,1.656265]
[1717593701408,0.00486,71059.0,71058.0,1.756265]
[1717593702821,0.00486,71059.0,71058.0,1.75626012]
[1717593703752,0.00486,71059.0,71058.0,2.03772012]
[1717593705744,0.00486,71059.0,71058.0,2.03771376]
[1717593706527,0.00486,71059.0,71058.0,1.75625376]
[1717593706758,0.00486,71059.0,71058.0,2.03771376]
[1717593708336,0.00486,71059.0,71058.0,1.73625376]
[1717593708575,0.00486,71059.0,71058.0,1.65467976]
[1717593709515,0.00486,71059.0,71058.0,1.67467976]
[1717593710081,0.00486,71059.0,71058.0,1.59838176]
[1717593711101,0.00486,71059.0,71058.0,1.61838176]
[1717593711242,0.00486,71059.0,71058.0,1.89984176]
[1717593712735,0.00486,71059.0,71058.0,1.87984176]
[1717593713404,0.00486,71059.0,71058.0,1.43218176]
[1717593714530,0.00486,71059.0,71058.0,1.45218176]
[1717593714747,0.00486,71059.0,71058.0,1.73364176]
[1717593715471,0.00486,71059.0,71058.0,2.13364176]
[1717593715679,0.00486,71059.0,71058.0,2.29774176]
[1717593715874,0.0074045,71067.0,71066.0,0.422142]
[1717593716072,0.0074045,71067.0,71066.0,0.76248535]
[1717593717914,0.0074045,71067.0,71066.0,0.88866335]
[1717593718091,0.0074045,71067.0,71066.0,0.86866335]
[1717593718291,0.0074045,71067.0,71066.0,0.88866335]
[1717593719128,0.0074045,71067.0,71066.0,1.17009135]
[1717593719330,0.0082645,71067.0,71066.0,1.17009135]
[1717593719544,0.0082645,71067.0,71066.0,1.15009135]
[1717593720803,0.0082645,71067.0,71066.0,1.17009135]
[1717593721846,0.0082645,71067.0,71066.0,1.27009135]
[1717593722020,0.0082645,71067.0,71066.0,1.35329135]
[1717593722229,0.0082645,71067.0,71066.0,1.77006577]
[1717593722451,0.0082645,71067.0,71066.0,2.06040705]
[1717593722622,0.0082645,71067.0,71066.0,1.86040705]
[1717593723131,0.0082645,71067.0,71066.0,2.06040705]
[1717593723312,0.0082645,71067.0,71066.0,1.86040705]
[1717593724044,0.0082645,71067.0,71066.0,1.86040056]
[1717593724431,0.0082645,71067.0,71066.0,1.73535928]
[1717593726428,0.0082645,71067.0,71066.0,1.93535928]
[1717593726940,0.0082645,71067.0,71066.0,1.82918128]
[1717593727232,0.0082645,71067.0,71066.0,3.74611328]
[1717593727389,0.00863,71070.0,71069.0,1.02354]
[1717593727591,0.00863,71070.0,71069.0,1.29095893]
[1717593727834,0.01451778,71070.0,71069.0,1.29095893]
[1717593728034,0.01451778,71070.0,71069.0,4.64609921]
[1717593728236,7.8e-07,71070.0,71069.0,4.64609921]
[1717593728443,7.9e-07,71070.0,71069.0,4.80247393]
[1717593728769,1.5e-07,71070.0,71069.0,1.81537493]
[1717593729033,0.01183742,71070.0,71069.0,1.61537493]
[1717593729243,2.8e-07,71070.0,71069.0,1.61537493]
[1717593729479,3.1e-07,71071.0,71070.0,1.104942]
[1717593729693,3.1e-07,71071.0,71070.0,1.49724348]
[1717593729912,9.8e-07,71071.0,71070.0,3.08788948]
[1717593730131,7.45891247,71075.0,71074.0,0.82349]
[1717593730346,7.45891247,71075.0,71074.0,1.09090893]
[1717593730996,7.45891247,71075.0,71074.0,2.01780793]
[1717593733342,7.45891247,71075.0,71074.0,1.25025062]
[1717593733549,7.45891247,71075.0,71074.0,1.23025062]
[1717593733753,7.45891247,71075.0,71074.0,1.07495062]
[1717593734111,7.45891247,71075.0,71074.0,1.32604963]
[1717593734521,7.45891247,71075.0,71074.0,1.24280893]
[1717593735244,7.45891247,71075.0,71074.0,1.32604963]
[1717593735443,7.45891247,71075.0,71074.0,1.34604963]
[1717593735997,7.45891247,71075.0,71074.0,1.32604963]
[1717593737163,7.45891247,71075.0,71074.0,1.24280893]
[1717593737364,7.45891247,71075.0,71074.0,1.3260639]
[1717593740230,7.45838564,71075.0,71074.0,1.24280893]
[1717593742089,7.45838564,71075.0,71074.0,1.26005008]
[1717593743440,7.62138564,71075.0,71074.0,1.36411879]
[1717593745175,7.62138564,71075.0,71074.0,1.26005008]
[1717593747577,7.62138564,71075.0,71074.0,1.36419687]
[1717593748372,7.62138564,71075.0,71074.0,1.37419687]
[1717593748373,7.45838564,71075.0,71074.0,1.37419687]
[1717593748575,7.45838564,71075.0,71074.0,1.35905008]
[1717593748826,7.45838564,71075.0,71074.0,2.20714608]
[1717593749062,7.45838564,71075.0,71074.0,2.48600089]
[1717593749267,7.45838564,71075.0,71074.0,2.36104608]
[1717593750581,7.45838564,71075.0,71074.0,2.16104608]
[1717593750787,7.45838564,71075.0,71074.0,2.36104608]
[1717593751122,7.45838564,71075.0,71074.0,2.46104608]
[1717593751983,7.35838564,71075.0,71074.0,2.46104608]
[1717593753789,7.35838564,71075.0,71074.0,2.46199208]
[1717593754306,7.35838564,71075.0,71074.0,2.19529208]
[1717593754538,7.35838564,71075.0,71074.0,2.46199208]
[1717593754944,7.3206442,71075.0,71074.0,2.46199208]
[1717593755161,7.3040742,71075.0,71074.0,2.46199208]
[1717593755737,7.2740742,71075.0,71074.0,2.46199208]
[1717593756149,7.2740742,71075.0,71074.0,2.74338808]
[1717593756150,7.2330742,71075.0,71074.0,2.74338808]
[1717593756356,7.2270742,71075.0,71074.0,2.92781489]
[1717593756567,7.1214142,71075.0,71074.0,2.92781489]
[1717593756969,7.0218252,71075.0,71074.0,3.07781489]
[1717593757200,6.9698252,71075.0,71074.0,2.89338808]
[1717593757397,6.9588252,71075.0,71074.0,2.89338808]
[1717593757603,6.9182912,71075.0,71074.0,2.89338808]
[1717593757815,6.9182912,71075.0,71074.0,2.9331333]
[1717593758043,6.8942912,71075.0,71074.0,2.9331333]
[1717593758247,6.8522912,71075.0,71074.0,3.17478408]
[1717593758462,6.8200512,71075.0,71074.0,3.38457263]
[1717593758901,6.7808712,71075.0,71074.0,3.38457263]
[1717593759318,6.7331512,71075.0,71074.0,3.38457263]
[1717593759541,6.7202712,71075.0,71074.0,3.34844566]
[1717593759763,6.6936512,71075.0,71074.0,3.34844566]
[1717593760003,6.6906512,71075.0,71074.0,3.38457263]
[1717593760873,6.6343732,71075.0,71074.0,3.34844566]
[1717593762239,6.6183732,71075.0,71074.0,3.34844566]
[1717593762670,6.5677632,71075.0,71074.0,3.34844566]
[1717593762887,6.4376952,71075.0,71074.0,3.38495701]
[1717593763120,6.4376952,71075.0,71074.0,3.67660629]
[1717593763121,4.51470323,71075.0,71074.0,3.67660629]
[1717593763370,4.29884615,71075.0,71074.0,3.79614535]
[1717593763596,4.21311043,71075.0,71074.0,3.46957998]
[1717593763816,4.03363586,71075.0,71074.0,3.46957998]
[1717593764294,3.98863586,71075.0,71074.0,3.46957998]
[1717593764549,3.98863586,71075.0,71074.0,3.92957998]
[1717593764550,3.94434843,71075.0,71074.0,3.92957998]
[1717593764781,3.83755974,71075.0,71074.0,3.89345301]
[1717593765005,3.78495714,71075.0,71074.0,3.92926827]
[1717593765225,3.74521561,71075.0,71074.0,3.92926827]
[1717593765443,3.72880287,71075.0,71074.0,3.92926827]
[1717593765896,3.72770287,71075.0,71074.0,3.92926827]
[1717593766311,3.66117127,71075.0,71074.0,3.92926827]
[1717593767173,3.58551002,71075.0,71074.0,3.82675301]
[1717593767389,3.58551002,71075.0,71074.0,3.83543816]
[1717593767587,3.58551002,71075.0,71074.0,4.80794535]
[1717593767740,3.58551002,71075.0,71074.0,4.838134]
[1717593768189,3.58551002,71075.0,71074.0,4.79838878]
[1717593768524,3.57055572,71075.0,71074.0,4.33838878]
[1717593769745,3.57055572,71075.0,71074.0,4.36138878]
[1717593774960,3.56295572,71075.0,71074.0,4.36138878]
[1717593775404,3.56295572,71075.0,71074.0,4.29468878]
[1717593775609,3.56295572,71075.0,71074.0,4.00488878]
[1717593775842,3.56295572,71075.0,71074.0,3.35719644]
[1717593780182,3.53995572,71075.0,71074.0,3.35719644]
[1717593780590,3.53737419,71075.0,71074.0,3.35719644]
[1717593781122,3.52101719,71075.0,71074.0,3.35719644]
[1717593781356,3.44291419,71075.0,71074.0,3.35719644]
[1717593783124,3.29212486,71075.0,71074.0,3.35719644]
[1717593783304,3.09879635,71075.0,71074.0,3.35719644]
[1717593783507,3.09598709,71075.0,71074.0,3.35719644]
[1717593783730,3.09368006,71075.0,71074.0,3.39334885]
[1717593783931,3.07596027,71075.0,71074.0,3.53341538]
[1717593784112,3.07314922,71075.0,71074.0,3.39334885]
[1717593784435,3.07033816,71075.0,71074.0,3.39334885]
[1717593784637,3.06752711,71075.0,71074.0,3.85334885]
[1717593784840,2.97137111,71075.0,71074.0,3.8899325]
[1717593785067,2.9617504,71075.0,71074.0,3.8899325]
[1717593785318,2.9466504,71075.0,71074.0,3.8899325]
[1717593785497,2.8796504,71075.0,71074.0,4.02976415]
[1717593785731,2.86083964,71075.0,71074.0,4.02976415]
[1717593785845,2.85251489,71075.0,71074.0,3.8899325]
[1717593786315,2.84018988,71075.0,71074.0,3.8876325]
[1717593786484,2.74780913,71075.0,71074.0,4.02744646]
[1717593786828,2.70372538,71075.0,71074.0,3.91893719]
[1717593787027,2.65110364,71075.0,71074.0,3.91893719]
[1717593787266,2.64126416,71075.0,71074.0,3.91893719]
[1717593787463,2.64126416,71075.0,71074.0,4.05874655]
[1717593787682,2.56870515,71075.0,71074.0,4.05874655]
[1717593787877,2.56237992,71075.0,71074.0,3.91893719]
[1717593788002,2.49399669,71075.0,71074.0,3.91893719]
[1717593788209,2.43957883,71075.0,71074.0,4.56662953]
[1717593788405,2.36653916,71075.0,71074.0,4.56662953]
[1717593788605,2.32553916,71075.0,71074.0,4.56662953]
[1717593788812,2.32202491,71075.0,71074.0,4.56662953]
[1717593789031,2.28965869,71075.0,71074.0,4.56662953]
[1717593789659,2.26969205,71075.0,71074.0,4.53532484]
[1717593790012,1.62891015,71075.0,71074.0,4.53532484]
[1717593790280,0.0667,71120.0,71119.0,0.140609]
[1717593790578,0.50006945,71120.0,71119.0,0.56624593]
[1717593790807,0.002,71129.0,71120.0,0.421821]
[1717593790984,0.002,71129.0,71120.0,0.66623993]
[1717593791613,0.0667,71123.0,71120.0,0.66623993]
[1717593792853,0.002,71129.0,71120.0,1.38613493]
[1717593793022,0.32113,71121.0,71120.0,1.38613493]
[1717593793543,0.25443,71121.0,71120.0,1.76734893]
[1717593793749,0.25443,71121.0,71120.0,1.04745393]
[1717593793964,0.25443,71121.0,71120.0,2.77142493]
[1717593794102,0.25443,71121.0,71120.0,2.27898294]
[1717593794305,0.25443,71121.0,71120.0,2.74821667]
[1717593794529,0.25443,71121.0,71120.0,2.68603193]
[1717593794949,0.25443,71121.0,71120.0,2.05209593]
[1717593795350,0.32113,71121.0,71120.0,0.94745393]
[1717593795780,0.32113,71121.0,71120.0,0.41633993]
[1717593796313,0.32113,71121.0,71120.0,0.69755393]
[1717593796531,0.34113,71121.0,71120.0,0.41633993]
[1717593796734,0.2365,71119.0,71113.0,0.14441893]
[1717593797096,0.3032,71114.0,71113.0,0.28503993]
[1717593797429,0.3132,71114.0,71113.0,0.28503993]
[1717593797628,0.3232,71114.0,71113.0,0.28503993]
[1717593798030,0.3232,71114.0,71111.0,0.01042673]
[1717593798031,0.2571,71112.0,71111.0,0.01042673]
[1717593798233,0.3238,71112.0,71111.0,0.15484566]
[1717593798433,0.3238,71112.0,71102.0,0.04146116]
[1717593798434,0.1776,71111.0,71102.0,0.04146116]
[1717593798618,0.1976,71110.0,71109.0,0.140629]
[1717593798819,0.2643,71110.0,71109.0,0.140629]
[1717593799071,0.2643,71110.0,71102.0,0.04146116]
[1717593799072,0.02,71106.0,71102.0,0.04146116]
[1717593799397,0.2305,71103.0,71102.0,0.18210416]
[1717593799519,0.2305,71103.0,71102.0,0.240643]
[1717593799520,0.2505,71103.0,71102.0,0.240643]
[1717593800034,0.3547,71103.0,71102.0,0.240643]
[1717593800509,0.3347,71103.0,71102.0,0.240643]
[1717593800738,0.3347,71103.0,71102.0,0.25107408]
[1717593800739,0.1638,71103.0,71102.0,0.25107408]
[1717593800911,0.1638,71103.0,71102.0,0.240643]
[1717593801530,0.1638,71103.0,71102.0,0.28210416]
[1717593801856,0.1638,71103.0,71102.0,0.38506193]
[1717593802076,0.1638,71103.0,71102.0,1.2157865]
[1717593802283,0.1638,71103.0,71102.0,1.17422193]
[1717593802711,0.1638,71103.0,71102.0,1.23820393]
[1717593802956,0.1638,71103.0,71102.0,0.5736143]
[1717593803139,0.1638,71103.0,71102.0,0.38506193]
[1717593803332,0.1638,71103.0,71102.0,0.4474143]
[1717593803536,0.1838,71103.0,71102.0,0.240643]
[1717593804646,0.227,71099.0,71098.0,0.14065]
[1717593804845,0.3979,71099.0,71098.0,0.14065]
[1717593806193,0.3979,71099.0,71098.0,0.1]
[1717593806547,0.227,71099.0,71098.0,0.1]
[1717593806909,0.3979,71099.0,71098.0,0.1]
[1717593807466,0.2241,71096.0,71095.0,0.1]
[1717593808217,0.2241,71096.0,71095.0,0.240656]
[1717593810301,0.2041,71096.0,71095.0,0.240656]
[1717593810511,0.2241,71096.0,71095.0,0.240656]
[1717593810721,0.22393074,71096.0,71095.0,0.240656]
[1717593818096,0.20393074,71096.0,71095.0,0.240656]
[1717593818610,0.22393074,71096.0,71095.0,0.240656]
[1717593819733,0.20393074,71096.0,71095.0,0.240656]
[1717593820135,0.22393074,71096.0,71095.0,0.240656]
[1717593820335,0.20393074,71096.0,71095.0,0.240656]
[1717593820945,0.19,71114.0,71096.0,0.281307]
[1717593820946,0.1529,71104.0,71096.0,0.281307]
[1717593821098,0.02,71114.0,71108.0,0.140631]
[1717593821099,0.1529,71109.0,71108.0,0.140631]
[1717593821326,0.1529,71109.0,71108.0,0.240631]
[1717593824211,0.1729,71109.0,71108.0,0.240631]
[1717593825369,0.1729,71109.0,71108.0,0.1]
[1717593825617,0.1709,71111.0,71104.0,0.1]
[1717593825618,0.1857,71105.0,71104.0,0.1]
[1717593825789,0.4008,71105.0,71104.0,0.1]
[1717593826607,0.204,71096.0,71095.0,0.141602]
[1717593826829,0.204,71096.0,71095.0,0.241602]
[1717593826830,0.3749,71096.0,71095.0,0.241602]
[1717593827027,0.3949,71096.0,71095.0,0.241602]
[1717593829390,0.3749,71096.0,71095.0,0.241602]
[1717593829945,0.3949,71096.0,71095.0,0.241602]
[1717593830146,0.3749,71096.0,71095.0,0.241602]
[1717593832611,0.3307,71096.0,71095.0,0.241602]
[1717593832780,0.1608,71107.0,71103.0,0.14064]
[1717593832985,0.1709,71106.0,71104.0,0.240638]
[1717593833188,0.1909,71106.0,71104.0,0.240638]
[1717593833517,0.02,71105.0,71104.0,0.240638]
[1717593833887,0.1709,71106.0,71105.0,0.140637]
[1717593834097,0.1709,71106.0,71105.0,0.240637]
[1717593834312,0.1909,71106.0,71105.0,0.240637]
[1717593837640,0.02,71106.0,71105.0,0.240637]
[1717593837843,0.1909,71106.0,71105.0,0.240637]
[1717593837988,0.19094,71106.0,71105.0,0.240637]
[1717593840072,0.19094,71106.0,71105.0,0.1]
[1717593840292,0.1851,71103.0,71102.0,0.1]
[1717593840450,0.02,71100.0,71099.0,0.1]
[1717593840661,0.02,71097.0,71096.0,0.140654]
[1717593840810,0.02,71097.0,71096.0,0.240654]
[1717593841907,0.1709,71099.0,71098.0,0.14065]
[1717593842108,0.1909,71099.0,71098.0,0.24065]
[1717593842690,0.1709,71099.0,71098.0,0.24065]
[1717593843113,0.1709,71105.0,71104.0,0.140638]
[1717593843318,0.1709,71105.0,71104.0,0.240638]
[1717593843933,0.1709,71105.0,71104.0,0.28222184]
[1717593845026,0.1709,71105.0,71104.0,0.240638]
[1717593846085,0.1709,71105.0,71104.0,0.28222184]
[1717593846285,4e-05,71106.0,71105.0,0.140637]
[1717593846484,4e-05,71106.0,71105.0,0.61325593]
[1717593846886,4e-05,71106.0,71105.0,0.71721553]
[1717593847260,4e-05,71106.0,71105.0,0.61325593]
[1717593847406,4e-05,71106.0,71105.0,0.89452993]
[1717593848617,4e-05,71106.0,71105.0,1.08218993]
[1717593848802,4e-05,71106.0,71105.0,1.06218993]
[1717593848988,4e-05,71106.0,71105.0,0.89452993]
[1717593850154,4e-05,71106.0,71105.0,0.99856404]
[1717593850353,4e-05,71106.0,71105.0,0.97775353]
[1717593850871,4e-05,71106.0,71105.0,1.09209253]
[1717593851217,4e-05,71106.0,71105.0,1.29014293]
[1717593851432,0.00016974,71122.0,71120.0,0.140607]
[1717593851641,0.00016974,71122.0,71120.0,0.240607]
[1717593853869,0.00016974,71122.0,71120.0,0.66623993]
[1717593854869,0.00016974,71122.0,71120.0,1.35096493]
[1717593855093,0.00016974,71122.0,71120.0,1.13923293]
[1717593855254,0.00016974,71122.0,71120.0,0.90613993]
[1717593855475,0.00016974,71122.0,71120.0,1.28690493]
[1717593856030,0.00016974,71122.0,71120.0,1.34928954]
[1717593856232,0.00016974,71122.0,71120.0,1.71111893]
[1717593856381,0.00016974,71122.0,71120.0,1.79429841]
[1717593856585,0.00016974,71122.0,71120.0,1.71111893]
[1717593857647,0.00016974,71122.0,71120.0,1.69111893]
[1717593859188,0.00016974,71122.0,71120.0,1.32821893]
[1717593859389,0.00016974,71122.0,71120.0,0.94745393]
[1717593860089,0.00016974,71122.0,71120.0,0.66623993]
[1717593860405,0.02016974,71122.0,71120.0,0.66623993]
[1717593860615,0.00016974,71122.0,71120.0,0.66623993]
[1717593860971,0.05283,71121.0,71120.0,0.66623993]
[1717593862025,0.00863,71121.0,71120.0,0.66623993]
[1717593866512,0.00863,71121.0,71120.0,1.08760293]
[1717593867071,0.00863,71121.0,71120.0,0.68923993]
[1717593867282,0.00863,71121.0,71120.0,1.39841993]
[1717593867407,0.00863,71121.0,71120.0,1.44064931]
[1717593867620,0.00863,71121.0,71120.0,1.42064931]
[1717593867829,0.00863,71121.0,71120.0,1.10169031]
[1717593869284,0.00863,71121.0,71120.0,1.42067493]
[1717593869624,0.00863,71121.0,71120.0,1.72600431]
[1717593870157,0.00863,71121.0,71120.0,1.66377493]
[1717593870358,0.00863,71121.0,71120.0,1.68377493]
[1717593870642,0.00863,71121.0,71120.0,1.74600431]
[1717593871016,0.00863,71121.0,71120.0,1.68377493]
[1717593871587,0.00856782,71121.0,71120.0,1.68377493]
[1717593871801,0.00856782,71121.0,71120.0,1.66377493]
[1717593871998,0.00856782,71121.0,71120.0,1.68377493]
[1717593873477,0.00856782,71121.0,71120.0,1.72662014]
[1717593873658,0.00856782,71121.0,71120.0,1.68377493]
[1717593875820,5.6e-07,71129.0,71128.0,0.440591]
[1717593876080,5.6e-07,71129.0,71128.0,1.28915379]
[1717593876279,5.6e-07,71129.0,71128.0,1.37929293]
[1717593876479,5.6e-07,71129.0,71128.0,1.22929293]
[1717593877074,5.6e-07,71129.0,71128.0,1.27379261]
[1717593877279,5.6e-07,71129.0,71128.0,1.55497561]
[1717593878029,5.6e-07,71129.0,71128.0,1.55332114]
[1717593878574,5.6e-07,71129.0,71128.0,1.51047593]
[1717593879347,5.6e-07,71129.0,71128.0,1.39372114]
[1717593879541,5.6e-07,71129.0,71128.0,1.45137561]
[1717593879739,5.6e-07,71129.0,71128.0,1.40687593]
[1717593880022,5.6e-07,71129.0,71128.0,1.17037593]
[1717593880616,5.6e-07,71129.0,71128.0,1.21487561]
[1717593880817,5.6e-07,71129.0,71128.0,1.17037593]
[1717593880992,5.6e-07,71129.0,71128.0,1.21487561]
[1717593881317,5.6e-07,71129.0,71128.0,1.17037593]
[1717593882528,5.6e-07,71129.0,71128.0,1.21181332]
[1717593882799,0.15920056,71129.0,71128.0,0.95353782]
[1717593882996,0.15920056,71129.0,71128.0,0.86619293]
[1717593883816,5.6e-07,71129.0,71128.0,0.86619293]
[1717593888242,5.6e-07,71129.0,71128.0,0.90763032]
[1717593888463,5.6e-07,71129.0,71128.0,0.86619293]
[1717593889522,5.6e-07,71129.0,71128.0,0.92834432]
[1717593890248,5.6e-07,71129.0,71128.0,0.34716132]
[1717593890249,0.15620056,71129.0,71128.0,0.34716132]
[1717593890453,0.20040056,71129.0,71128.0,0.20274239]
[1717593890620,0.20040056,71129.0,71128.0,0.140591]
[1717593891989,5.6e-07,71129.0,71128.0,0.34716132]
[1717593892185,5.6e-07,71129.0,71128.0,0.38500993]
[1717593892876,5.6e-07,71129.0,71128.0,0.46787129]
[1717593893240,5.6e-07,71129.0,71128.0,0.38595593]
[1717593893642,0.00086056,71129.0,71128.0,0.38595593]
[1717593894426,0.00086056,71129.0,71128.0,0.46909635]
[1717593895132,0.00086056,71129.0,71128.0,0.38595593]
[1717593896157,0.00086056,71129.0,71128.0,0.48953201]
[1717593896763,0.02086056,71129.0,71128.0,0.38595593]
[1717593897384,0.02086056,71129.0,71128.0,0.46920715]
[1717593897743,0.02090056,71129.0,71128.0,0.46920715]
[1717593897944,0.02090056,71129.0,71128.0,0.241537]
[1717593898147,0.22620056,71129.0,71128.0,0.241537]
[1717593898658,0.22620056,71129.0,71128.0,0.28317886]
[1717593899455,0.22620056,71129.0,71128.0,0.000946]
[1717593899678,0.42620056,71129.0,71128.0,0.000946]
[1717593900212,0.22620056,71129.0,71128.0,0.000946]
[1717593900420,0.42620056,71129.0,71128.0,0.000946]
[1717593903000,0.57061949,71129.0,71128.0,0.000946]
[1717593903199,0.67061949,71129.0,71128.0,0.000946]
[1717593904417,0.81120849,71129.0,71128.0,0.000946]
[1717593904738,0.57061949,71129.0,71128.0,0.000946]
[1717593905186,0.67061949,71129.0,71128.0,0.000946]
[1717593905420,0.32620056,71129.0,71128.0,0.000946]
[1717593905623,0.39710056,71129.0,71128.0,0.000946]
[1717593905830,0.00090056,71129.0,71128.0,0.000946]
[1717593906135,0.00090056,71129.0,71128.0,0.141537]
[1717593906348,0.00090056,71129.0,71128.0,0.28321845]
[1717593906560,0.00090056,71129.0,71128.0,0.34574064]
[1717593906761,0.00090056,71129.0,71128.0,0.49015957]
[1717593906968,0.00090056,71129.0,71128.0,0.38595593]
[1717593909808,0.00090056,71129.0,71128.0,0.49005696]
[1717593910033,0.02090056,71129.0,71128.0,0.49005696]
[1717593910474,0.00090056,71129.0,71128.0,0.46924656]
[1717593910917,0.00090056,71129.0,71128.0,0.38595593]
[1717593910918,0.02090056,71129.0,71128.0,0.38595593]
[1717593911244,0.02090056,71129.0,71128.0,0.42760816]
[1717593911445,0.02090056,71129.0,71128.0,0.38595593]
[1717593911862,0.00090056,71129.0,71128.0,0.38595593]
[1717593912238,0.02090056,71129.0,71128.0,0.38595593]
[1717593912408,0.02090056,71129.0,71128.0,0.44842724]
[1717593912610,0.02090056,71129.0,71128.0,0.44837892]
[1717593913384,0.00090056,71129.0,71128.0,0.46919824]
[1717593913556,0.00090056,71129.0,71128.0,0.49000864]
[1717593913965,0.00090056,71129.0,71128.0,0.38590761]
[1717593914177,0.00090056,71129.0,71128.0,0.48997464]
[1717593914330,0.00090056,71129.0,71128.0,0.38590761]
[1717593916605,0.02090056,71129.0,71128.0,0.38590761]
[1717593917321,0.00090056,71129.0,71128.0,0.38590761]
[1717593917531,0.00090056,71129.0,71128.0,0.46915765]
[1717593918408,0.00090056,71129.0,71128.0,0.32473872]
[1717593918639,0.02090056,71129.0,71128.0,0.32473872]
[1717593918843,0.19180056,71129.0,71128.0,0.32473872]
[1717593918991,0.19180056,71129.0,71128.0,0.2831205]
[1717593919192,0.19180056,71129.0,71128.0,0.24148868]
[1717593920128,0.00090056,71129.0,71128.0,0.24148868]
[1717593920274,0.00090056,71129.0,71128.0,0.38590761]
[1717593920476,0.00090056,71129.0,71128.0,0.42753943]
[1717593920824,0.00090056,71129.0,71128.0,0.38590761]
[1717593921033,0.00090056,71129.0,71128.0,0.42753834]
[1717593921429,0.02090056,71129.0,71128.0,0.38590761]
[1717593921862,0.02090056,71129.0,71128.0,0.42756471]
[1717593922070,0.02090056,71129.0,71128.0,0.38590761]
[1717593922254,0.23600056,71129.0,71128.0,0.30393641]
[1717593922468,0.38630056,71129.0,71128.0,0.24148868]
[1717593924842,0.34210056,71129.0,71128.0,0.24148868]
[1717593925038,0.19180056,71129.0,71128.0,0.24148868]
[1717593928074,0.19180056,71129.0,71128.0,0.28318141]
[1717593928530,0.19180056,71129.0,71128.0,0.24148868]
[1717593928730,0.19180056,71129.0,71128.0,0.28318141]
[1717593929369,0.19180056,71129.0,71128.0,0.24148868]
[1717593929564,0.19180056,71129.0,71128.0,0.30404662]
[1717593929744,0.19180056,71129.0,71128.0,0.24148868]
[1717593929944,0.19180056,71129.0,71128.0,0.30404662]
[1717593930348,0.19180056,71129.0,71128.0,0.30404895]
[1717593930349,0.02090056,71129.0,71128.0,0.30404895]
[1717593930549,0.02090056,71129.0,71128.0,0.24148868]
[1717593931420,0.02090056,71129.0,71128.0,0.34575119]
[1717593931625,0.02090056,71129.0,71128.0,0.32490801]
[1717593931878,0.02090056,71129.0,71128.0,0.34575119]
[1717593932483,0.02090056,71129.0,71128.0,0.24148868]
[1717593932663,0.02090056,71129.0,71128.0,0.62693669]
[1717593932862,0.00090056,71129.0,71128.0,0.62693669]
[1717593933040,0.02090056,71129.0,71128.0,0.62693669]
[1717593933774,0.02090056,71129.0,71128.0,0.62692683]
[1717593933979,0.00090056,71129.0,71128.0,0.66709061]
[1717593934182,0.00090056,71129.0,71128.0,1.01024718]
[1717593934394,0.00090056,71129.0,71128.0,0.90599061]
[1717593935687,0.00863,71131.0,71128.0,0.90599061]
[1717593935688,0.00863,71131.0,71129.0,0.281179]
[1717593935872,0.00863,71131.0,71130.0,0.240587]
[1717593936124,0.00863,71131.0,71130.0,0.66618093]
[1717593936600,0.00863,71131.0,71130.0,1.18875593]
[1717593937267,0.00863,71131.0,71130.0,1.31387182]
[1717593938132,0.00863,71131.0,71130.0,1.18875593]
[1717593938534,0.00863,71131.0,71130.0,1.3137083]
[1717593938965,0.00863,71131.0,71130.0,1.48675193]
[1717593939704,0.00863,71131.0,71130.0,1.61168249]
[1717593940065,0.00863,71131.0,71130.0,1.48675193]
[1717593940470,0.00863,71131.0,71130.0,1.61165612]
[1717593940938,0.00863,71131.0,71130.0,1.48675193]
[1717593941377,0.00863,71131.0,71130.0,1.89283205]
[1717593941797,0.00863,71131.0,71130.0,1.91583205]
[1717593943306,0.02863,71142.0,71130.0,1.91583205]
[1717593943307,0.00863,71142.0,71138.0,0.702857]
[1717593943510,0.02863,71142.0,71138.0,1.26728254]
[1717593943718,0.0430065,71139.0,71138.0,1.26728254]
[1717593943961,0.0230065,71139.0,71138.0,1.26728254]
[1717593944152,0.0230065,71139.0,71138.0,1.18397593]
[1717593944496,0.0230065,71139.0,71138.0,1.26728254]
[1717593946601,0.0230065,71139.0,71138.0,1.18397593]
[1717593947016,0.0230065,71139.0,71138.0,1.26726488]
[1717593947847,0.0230065,71139.0,71138.0,1.18397593]
[1717593948257,0.1956065,71139.0,71138.0,0.60500962]
[1717593948460,0.1956065,71139.0,71138.0,0.521714]
[1717593949716,0.1956065,71139.0,71138.0,0.58423121]
[1717593949912,0.1956065,71139.0,71138.0,0.521714]
[1717593950275,0.1756065,71139.0,71138.0,0.86537421]
[1717593950457,0.0230065,71139.0,71138.0,1.18767593]
[1717593951489,0.0230065,71139.0,71138.0,1.31270534]
[1717593951913,0.0230065,71139.0,71138.0,1.18767593]
[1717593952408,0.0230065,71139.0,71138.0,1.55130993]
[1717593952787,0.0230065,71139.0,71138.0,1.31270534]
[1717593952989,0.0230065,71139.0,71138.0,1.18767593]
[1717593953449,0.0230065,71139.0,71138.0,1.46881893]
[1717593953602,0.0230065,71139.0,71138.0,3.03040893]
[1717593954012,0.0230065,71139.0,71138.0,3.37256793]
[1717593954218,0.0230065,71139.0,71138.0,3.30090493]
[1717593954414,0.0230065,71139.0,71138.0,3.23340493]
[1717593954615,5e-07,71139.0,71138.0,3.23340493]
[1717593955242,0.0642005,71139.0,71138.0,2.14402]
[1717593955417,0.3889005,71139.0,71138.0,0.50509746]
[1717593955773,0.3889005,71139.0,71138.0,0.421714]
[1717593956568,0.3889005,71139.0,71138.0,0.140571]
[1717593956739,0.3889005,71139.0,71138.0,0.240571]
[1717593959645,5e-07,71139.0,71138.0,0.754414]
[1717593959853,5e-07,71139.0,71138.0,1.00716198]
[1717593960055,5e-07,71139.0,71138.0,0.754414]
[1717593960274,5e-07,71139.0,71138.0,0.85862698]
[1717593960507,5e-07,71139.0,71138.0,0.62592698]